fUSD/lending_fUSD_20240116
["ID","MTS","AMOUNT","RATE_DAILY","PERIOD"]
[311805162,1705420257566,-500.0,0.00024904,2]
[311805163,1705420257575,-10000.0,0.0002491,2]
[311805164,1705420257584,-159.52,0.00024943,2]
[311805165,1705420257593,-123385.1361869,0.00024949,2]
[311805166,1705420257602,-9293.5480181,0.00024949,2]
[311805167,1705420257611,-6438.2608955,0.00024966,2]
[311805168,1705420257620,-9664.3785297,0.00024966,2]
[311805169,1705420257630,-94034.0952416,0.00024966,2]
[311805170,1705420257639,-5590.5176222,0.00024983,2]
[311805171,1705420257649,-107625.3532302,0.00024983,2]
[311805172,1705420257658,-8092.930347,0.00024983,2]
[311805173,1705420257667,-8420.3806736,0.00024983,2]
[311805174,1705420257676,-81930.0357288,0.00024983,2]
[311805175,1705420257686,-1663.63,0.0002499,2]
[311805176,1705420257696,-302.84681763,0.00025,2]
[311805177,1705420257705,-167.05182833,0.00025,2]
[311805178,1705420257714,-693.1186857,0.00025,2]
[311805179,1705420257724,-387.44495424,0.00025,2]
[311805180,1705420257733,-1582.64010755,0.00025,2]
[311805181,1705420257743,-201.83579665,0.00025,2]
[311805182,1705420257753,-1070.18909292,0.00025,2]
[311805183,1705420257763,-4000.0,0.00025,2]
[311805184,1705420257773,-403.62,0.00025,2]
[311805185,1705420257784,-430.0,0.00025,2]
[311805186,1705420257793,-712.70323233,0.00025,2]
[311805187,1705420257803,-2805.19298824,0.00025,2]
[311805188,1705420257813,-1248.38541945,0.00025,2]
[311805189,1705420257822,-9590.0,0.00025,2]
[311805190,1705420257831,-1762.28813193,0.00025,7]
[311805191,1705420257840,-2312.0,0.00025,2]
[311805192,1705420257849,-20000.0,0.00025,2]
[311805193,1705420257858,-2000.0,0.00025,2]
[311805194,1705420257867,-277475.33007009,0.00025,4]
[311805195,1705420257877,-337339.83386335,0.00025,4]
[311805196,1705420257886,-10893.54859993,0.00025,4]
[311805197,1705420257895,-102693.9220107,0.00025,2]
[311805198,1705420257904,-423295.32827623,0.00025,2]
[311805199,1705420257914,-151.0,0.00025,7]
[311805200,1705420257923,-151.0,0.00025,7]
[311805201,1705420257932,-1250.0,0.00025,3]
[311805202,1705420257941,-151.0,0.00025,7]
[311805203,1705420257950,-151.0,0.00025,7]
[311805204,1705420257960,-151.0,0.00025,7]
[311805205,1705420257970,-151.0,0.00025,7]
[311805206,1705420257979,-151.0,0.00025,2]
[311805207,1705420257989,-151.0,0.00025,2]
[311805208,1705420257998,-151.0,0.00025,2]
[311805209,1705420258007,-151.0,0.00025,2]
[311805210,1705420258016,-151.0,0.00025,7]
[311805211,1705420258025,-151.0,0.00025,7]
[311805212,1705420258037,-237.330556,0.00025,7]
[311805213,1705420258046,-237.330556,0.00025,7]
[311805214,1705420258057,-237.330556,0.00025,7]
[311805215,1705420258068,-237.330556,0.00025,7]
[311805216,1705420258078,-227.182163,0.00025,7]
[311805217,1705420258087,-227.182163,0.00025,7]
[311805218,1705420258098,-227.182163,0.00025,7]
[311805219,1705420258107,-227.182163,0.00025,7]
[311805220,1705420258117,-165.167714,0.00025,2]
[311805221,1705420258125,-150.0,0.00025,2]
[311805222,1705420258134,-650.0,0.00025,2]
[311805223,1705420258144,-151.0,0.00025,7]
[311805224,1705420258153,-151.0,0.00025,7]
[311805225,1705420258161,-151.0,0.00025,7]
[311805226,1705420258170,-151.0,0.00025,7]
[311805227,1705420258179,-151.0,0.00025,7]
[311805228,1705420258188,-151.0,0.00025,7]
[311805229,1705420258197,-150.0,0.00025,2]
[311805230,1705420258206,-348.486999,0.00025,7]
[311805231,1705420258215,-348.486999,0.00025,7]
[311805232,1705420258224,-348.486999,0.00025,7]
[311805233,1705420258233,-348.486999,0.00025,7]
[311805234,1705420258242,-500.0,0.00025,2]
[311805235,1705420258251,-151.0,0.00025,7]
[311805236,1705420258261,-151.0,0.00025,7]
[311805237,1705420258270,-151.0,0.00025,7]
[311805238,1705420258279,-151.0,0.00025,7]
[311805239,1705420258288,-1299.2570832,0.00025,2]
[311805240,1705420258297,-815.783156,0.00025,7]
[311805241,1705420258307,-815.783156,0.00025,7]
[311805242,1705420258318,-815.783156,0.00025,7]
[311805243,1705420258327,-815.783156,0.00025,7]
[311805244,1705420258338,-151.0,0.00025,7]
[311805245,1705420258347,-151.0,0.00025,7]
[311805246,1705420258358,-151.0,0.00025,7]
[311805247,1705420258369,-151.0,0.00025,7]
[311805248,1705420258378,-209962.84664275,0.00025,2]
[311805249,1705420258387,-484.549036,0.00025,7]
[311805250,1705420258397,-484.549036,0.00025,7]
[311805251,1705420258407,-484.549036,0.00025,7]
[311805252,1705420258416,-484.549036,0.00025,7]
[311805253,1705420258425,-151.0,0.00025,7]
[311805254,1705420258434,-151.0,0.00025,7]
[311805255,1705420258445,-151.0,0.00025,7]
[311805256,1705420258457,-151.0,0.00025,7]
[311805257,1705420258466,-192.30115,0.00025,7]
[311805258,1705420258475,-300.0,0.00025,2]
[311805259,1705420258487,-150.0,0.00025,2]
[311805260,1705420258497,-151.0,0.00025,7]
[311805261,1705420258506,-151.0,0.00025,7]
[311805262,1705420258515,-151.0,0.00025,7]
[311805263,1705420258524,-151.0,0.00025,7]
[311805264,1705420258533,-151.0,0.00025,7]
[311805265,1705420258543,-200.0,0.00025,2]
[311805266,1705420258552,-151.0,0.00025,7]
[311805267,1705420258561,-151.0,0.00025,7]
[311805268,1705420258572,-150.0,0.00025,2]
[311805269,1705420258581,-385.2659972,0.0002509,2]
[311805270,1705420258590,-167.0,0.00025099,2]
[311805271,1705420258600,-1797.99211658,0.000251,2]
[311805272,1705420258609,-749.69,0.00025172,2]
[311805273,1705420258618,-500.0,0.00025225,2]
[311805274,1705420258627,-200.0,0.0002525,2]
[311805275,1705420258637,-1663.63,0.00025264,2]
[311805276,1705420258646,-201.27748298,0.000253,2]
[311805277,1705420258655,-1000.0,0.00025324,3]
[311805278,1705420258664,-1000.0,0.00025324,3]
[311805279,1705420258673,-150.0,0.00025329,2]
[311805280,1705420258682,-150.0,0.00025329,2]
[311805281,1705420258692,-150.0,0.00025329,2]
[311805282,1705420258701,-150.0,0.00025329,2]
[311805283,1705420258710,-1000.0,0.00025378,3]
[311805284,1705420258720,-500.0,0.00025452,2]
[311805285,1705420258729,-500.0,0.00025452,2]
[311805286,1705420258739,-273.94741804,0.0002549,2]
[311805287,1705420258748,-940.88,0.00025498,2]
[311805288,1705420258758,-155.00397693,0.000255,2]
[311805289,1705420258768,-1000.0,0.000255,2]
[311805290,1705420258776,-1000.0,0.00025501,3]
[311805291,1705420258786,-1000.0,0.00025501,3]
[311805292,1705420258796,-200.0,0.00025503,2]
[311805293,1705420258805,-1000.0,0.00025506,3]
[311805294,1705420258815,-1000.0,0.00025506,3]
[311805295,1705420258824,-1000.0,0.00025506,3]
[311805296,1705420258833,-1000.0,0.00025506,3]
[311805297,1705420258842,-156.93,0.00025508,2]
[311805298,1705420258853,-1663.63,0.00025538,2]
[311805299,1705420258862,-1000.0,0.0002567,2]
[311805300,1705420258872,-2189.72,0.00025675,2]
[311805301,1705420258881,-1000.0,0.00025688,3]
[311805302,1705420258891,-1000.0,0.00025688,3]
[311805303,1705420258902,-200.0,0.00025758,2]
[311805304,1705420258912,-158.74,0.00025762,2]
[311805305,1705420258921,-10000.0,0.00025788,2]
[311805306,1705420258930,-4000.0,0.000258,3]
[311805307,1705420258939,-1663.63,0.00025812,2]
[311805308,1705420258949,-220.0,0.0002585,2]
[311805309,1705420258959,-219.0,0.0002585,2]
[311805310,1705420258969,-400.0,0.0002587,2]
[311805311,1705420258978,-1000.0,0.0002587,2]
[311805312,1705420258987,-167.0,0.00025901,2]
[311805313,1705420258996,-400.0,0.0002597,2]
[311805314,1705420259005,-400.0,0.0002597,2]
[311805315,1705420259014,-400.0,0.0002597,2]
[311805316,1705420259023,-1000.0,0.0002597,2]
[311805317,1705420259032,-1853.0,0.00025989,2]
[311805318,1705420259042,-835.0,0.00025989,2]
[311805319,1705420259051,-945.0,0.00025989,2]
[311805320,1705420259060,-1249.0,0.00025989,2]
[311805321,1705420259070,-1234.0,0.00025989,2]
[311805322,1705420259079,-319.0,0.00025989,2]
[311805323,1705420259088,-877.0,0.00025989,2]
[311805324,1705420259097,-2904.0,0.00025989,2]
[311805325,1705420259106,-19697.0,0.00025989,2]
[311805326,1705420259115,-2272.0,0.00025989,2]
[311805327,1705420259124,-150.0,0.00025989,2]
[311805328,1705420259133,-1029.0,0.00025989,2]
[311805329,1705420259142,-150.0,0.00025989,2]
[311805330,1705420259151,-4171.14791315,0.00026,2]
[311805331,1705420259160,-201.00058381,0.00026,2]
[311805332,1705420259170,-500.0,0.00026,2]
[311805333,1705420259180,-200000.0,0.00026,2]
[311805334,1705420259189,-2000.0,0.00026,2]
[311805335,1705420259199,-593.0,0.00026,14]
[311805336,1705420259209,-150.0,0.00026,2]
[311805337,1705420259220,-166.021605,0.00026,2]
[311805338,1705420259229,-509.380643,0.00026,2]
[311805339,1705420259238,-1299.2570832,0.00026,2]
[311805340,1705420259248,-300.0,0.00026,2]
[311805341,1705420259258,-635.076,0.00026,2]
[311805342,1705420259269,-275.5,0.00026,2]
[311805343,1705420259279,-917.9073,0.00026,2]
[311805344,1705420259289,-2197.6431,0.00026,2]
[311805345,1705420259299,-1000.0,0.00026,2]
[311805346,1705420259309,-7671.22,0.00026,3]
[311805347,1705420259320,-150.0,0.00026,2]
[311805348,1705420259329,-500.0,0.00026,2]
[311805349,1705420259341,-91865.5702734,0.0002601,2]
[311805350,1705420259352,-6892.312676,0.0002601,2]
[311805351,1705420259362,-200.0,0.00026015,2]
[311805352,1705420259372,-234.0,0.00026027,2]
[311805353,1705420259382,-1000.0,0.00026027,2]
[311805354,1705420259391,-1000.0,0.00026027,2]
[311805355,1705420259401,-1000.0,0.00026027,2]
[311805356,1705420259410,-1000.0,0.00026027,2]
[311805357,1705420259419,-1000.0,0.00026027,2]
[311805358,1705420259430,-1000.0,0.00026027,2]
[311805359,1705420259440,-1000.0,0.00026027,2]
[311805360,1705420259449,-1000.0,0.00026027,2]
[311805361,1705420259458,-1000.0,0.00026027,2]
[311805362,1705420259467,-1000.0,0.00026027,2]
[311805363,1705420259477,-1000.0,0.00026027,2]
[311805364,1705420259486,-1000.0,0.00026027,2]
[311805365,1705420259497,-1000.0,0.00026027,2]
[311805366,1705420259506,-1000.0,0.00026027,2]
[311805367,1705420259515,-1000.0,0.00026027,2]
[311805368,1705420259525,-1000.0,0.00026027,2]
[311805369,1705420259535,-1000.0,0.00026027,2]
[311805370,1705420259545,-1000.0,0.00026027,2]
[311805371,1705420259554,-1000.0,0.00026027,2]
[311805372,1705420259563,-1000.0,0.00026027,2]
[311805373,1705420259573,-1000.0,0.00026027,2]
[311805374,1705420259582,-1000.0,0.00026027,2]
[311805375,1705420259591,-1000.0,0.00026027,2]
[311805376,1705420259601,-1000.0,0.00026027,2]
[311805377,1705420259610,-1000.0,0.00026027,2]
[311805378,1705420259620,-1000.0,0.00026027,2]
[311805379,1705420259628,-1000.0,0.00026027,2]
[311805380,1705420259638,-1000.0,0.00026027,2]
[311805381,1705420259647,-1000.0,0.00026027,2]
[311805382,1705420259655,-1075.0,0.00026027,2]
[311805383,1705420259666,-150.0,0.00026079,2]
[311805384,1705420259676,-1663.63,0.00026086,2]
[311805385,1705420259685,-233.24,0.00026134,2]
[311805386,1705420259696,-749.69,0.00026151,2]
[311805387,1705420259706,-159.52,0.00026333,2]
[311805388,1705420259715,-1663.63,0.0002636,2]
[311805389,1705420259725,-16710.88575015,0.000264,2]
[311805390,1705420259734,-940.88,0.00026476,2]
[311805391,1705420259743,-940.88,0.00026476,2]
[311805392,1705420259753,-940.88,0.00026476,2]
[311805393,1705420259762,-940.88,0.00026476,2]
[311805394,1705420259771,-940.88,0.00026476,2]
[311805395,1705420259780,-1881.35,0.00026476,2]
[311805396,1705420259789,-401.54,0.00026476,2]
[311805397,1705420259799,-401.54,0.00026476,2]
[311805398,1705420259808,-401.54,0.00026476,2]
[311805399,1705420259821,-940.88,0.00026476,2]
[311805400,1705420259830,-593.0,0.000265,14]
[311805401,1705420259841,-4742.7743489,0.00026539,2]
[311805402,1705420259850,-7176.3828176,0.00026539,2]
[311805403,1705420259860,-69825.9762161,0.00026539,2]
[311805404,1705420259870,-2189.72,0.00026546,2]
[311805405,1705420259880,-500.0,0.00026548,2]
[311805406,1705420259890,-500.0,0.00026548,2]
[311805407,1705420259902,-151.0,0.00026557,7]
[311805408,1705420259913,-151.0,0.00026557,7]
[311805409,1705420259922,-151.0,0.00026557,7]
[311805410,1705420259931,-500.0,0.00026559,2]
[311805411,1705420259941,-3253.37,0.00026575,2]
[311805412,1705420259951,-23025.73,0.00026575,2]
[311805413,1705420259960,-462.35,0.00026589,2]
[311805414,1705420259969,-293.0,0.00026621,2]
[311805415,1705420259979,-151.0,0.00026634,7]
[311805416,1705420259988,-1663.63,0.00026634,2]
[311805417,1705420259998,-155.54865615,0.00026701,2]
[311805418,1705420260007,-167.0,0.00026703,2]
[311805419,1705420260017,-269684.79112489,0.0002683,2]
[311805420,1705420260026,-1663.63,0.00026908,2]
[311805421,1705420260036,-220.0,0.0002699,2]
[311805422,1705420260045,-219.0,0.0002699,2]
[311805423,1705420260055,-164.86,0.00027,2]
[311805424,1705420260064,-300.0,0.00027,28]
[311805425,1705420260074,-260.89751645,0.00027,2]
[311805426,1705420260082,-2000.0,0.00027,2]
[311805427,1705420260092,-1300.0,0.00027,3]
[311805428,1705420260101,-593.0,0.00027,15]
[311805429,1705420260110,-150.0,0.00027,2]
[311805430,1705420260119,-1299.2570832,0.00027,2]
[311805431,1705420260129,-643.45218776,0.00027,2]
[311805432,1705420260138,-643.45218776,0.00027,2]
[311805433,1705420260147,-643.45218776,0.00027,2]
[311805434,1705420260157,-643.45218776,0.00027,2]
[311805435,1705420260166,-643.45218776,0.00027,2]
[311805436,1705420260175,-643.45218776,0.00027,2]
[311805437,1705420260184,-643.45218776,0.00027,2]
[311805438,1705420260193,-643.45218776,0.00027,2]
[311805439,1705420260202,-643.45218776,0.00027,2]
[311805440,1705420260212,-643.45218776,0.00027,2]
[311805441,1705420260221,-643.45218776,0.00027,2]
[311805442,1705420260230,-643.45218776,0.00027,2]
[311805443,1705420260239,-643.45218776,0.00027,2]
[311805444,1705420260249,-643.45218776,0.00027,2]
[311805445,1705420260258,-643.45218776,0.00027,2]
[311805446,1705420260267,-643.45218776,0.00027,2]
[311805447,1705420260277,-643.45218776,0.00027,2]
[311805448,1705420260287,-643.45218776,0.00027,2]
[311805449,1705420260296,-643.45218776,0.00027,2]
[311805450,1705420260306,-643.45218776,0.00027,2]
[311805451,1705420260317,-643.45218776,0.00027,2]
[311805452,1705420260326,-643.45218776,0.00027,2]
[311805453,1705420260336,-643.45218776,0.00027,2]
[311805454,1705420260345,-643.45218776,0.00027,2]
[311805455,1705420260354,-643.45218776,0.00027,2]
[311805456,1705420260364,-643.45218776,0.00027,2]
[311805457,1705420260374,-643.45218776,0.00027,2]
[311805458,1705420260388,-643.45218776,0.00027,2]
[311805459,1705420260397,-643.45218776,0.00027,2]
[311805460,1705420260406,-643.45218776,0.00027,2]
[311805461,1705420260415,-643.45218776,0.00027,2]
[311805462,1705420260424,-643.45218776,0.00027,2]
[311805463,1705420260564,-643.45218776,0.00027,2]
[311805464,1705420260574,-643.45218776,0.00027,2]
[311805465,1705420260583,-643.45218776,0.00027,2]
[311805466,1705420260593,-643.45218776,0.00027,2]
[311805467,1705420260602,-643.45218776,0.00027,2]
[311805468,1705420260612,-643.45218776,0.00027,2]
[311805469,1705420260621,-643.45218776,0.00027,2]
[311805470,1705420260631,-643.45218776,0.00027,2]
[311805471,1705420260640,-643.45218776,0.00027,2]
[311805472,1705420260650,-643.45218776,0.00027,2]
[311805473,1705420260659,-643.45218776,0.00027,2]
[311805474,1705420260669,-643.45218776,0.00027,2]
[311805475,1705420260678,-643.45218776,0.00027,2]
[311805476,1705420260688,-643.45218776,0.00027,2]
[311805477,1705420260698,-643.45218776,0.00027,2]
[311805478,1705420260707,-643.45218776,0.00027,2]
[311805479,1705420260717,-643.45218776,0.00027,2]
[311805480,1705420260727,-643.45218776,0.00027,2]
[311805481,1705420260737,-300.0,0.00027,2]
[311805482,1705420260747,-377.155944,0.00027,2]
[311805483,1705420260757,-150.0,0.00027,2]
[311805484,1705420260767,-672.06,0.00027014,2]
[311805485,1705420260779,-276.0,0.00027015,2]
[311805486,1705420260789,-322.72569877,0.00027075,2]
[311805487,1705420260799,-205.0,0.00027078,9]
[311805488,1705420260809,-152.0,0.00027086,3]
[311805489,1705420260820,-500.0,0.00027096,2]
[311805490,1705420260831,-500.0,0.00027096,2]
[311805491,1705420260841,-151.0,0.00027101,7]
[311805492,1705420260851,-273.163913,0.00027101,7]
[311805493,1705420260862,-484.549036,0.00027101,7]
[311805494,1705420260873,-484.549036,0.00027101,7]
[311805495,1705420260883,-151.0,0.00027101,7]
[311805496,1705420260893,-749.69,0.00027129,2]
[311805497,1705420260903,-1663.63,0.00027182,2]
[311805498,1705420260912,-4320.36427168,0.00027287,2]
[311805499,1705420260924,-9250.61406538,0.000273,2]
[311805500,1705420260934,-1000.0,0.00027375,3]
[311805501,1705420260943,-1000.0,0.00027375,3]
[311805502,1705420260953,-1000.0,0.00027375,3]
[311805503,1705420260962,-1938.96249019,0.00027375,3]
[311805504,1705420260972,-540.56351188,0.00027375,3]
[311805505,1705420260982,-1020.61908802,0.00027375,3]
[311805506,1705420260991,-1000.0,0.00027375,3]
[311805507,1705420261000,-1842.74216932,0.00027375,3]
[311805508,1705420261009,-404.07270759,0.00027375,3]
[311805509,1705420261018,-165.74116814,0.00027375,3]
[311805510,1705420261029,-208.00172578,0.00027375,3]
[311805511,1705420261038,-1000.0,0.00027375,3]
[311805512,1705420261049,-230.36147115,0.00027375,3]
[311805513,1705420261058,-16253.42324493,0.00027375,3]
[311805514,1705420261069,-5270.54995245,0.00027375,3]
[311805515,1705420261079,-212.66185054,0.00027375,3]
[311805516,1705420261088,-807.08692201,0.00027375,3]
[311805517,1705420261098,-1000.0,0.00027375,3]
[311805518,1705420261107,-459.35485569,0.00027375,3]
[311805519,1705420261116,-333.63827158,0.00027375,3]
[311805520,1705420261127,-500.0,0.00027397,7]
[311805521,1705420261138,-500.0,0.00027397,7]
[311805522,1705420261148,-500.0,0.00027397,7]
[311805523,1705420261158,-192.60093773,0.00027397,7]
[311805524,1705420261169,-3608.91482232,0.00027397,2]
[311805525,1705420261178,-3000.0,0.00027397,2]
[311805526,1705420261187,-3000.0,0.00027397,2]
[311805527,1705420261197,-3000.0,0.00027397,2]
[311805528,1705420261207,-3000.0,0.00027397,2]
[311805529,1705420261218,-3000.0,0.00027397,2]
[311805530,1705420261228,-3000.0,0.00027397,2]
[311805531,1705420261237,-3000.0,0.00027397,2]
[311805532,1705420261247,-3000.0,0.00027397,2]
[311805533,1705420261258,-3000.0,0.00027397,2]
[311805534,1705420261267,-3000.0,0.00027397,2]
[311805535,1705420261277,-3000.0,0.00027397,2]
[311805536,1705420261286,-3000.0,0.00027397,2]
[311805537,1705420261295,-3000.0,0.00027397,2]
[311805538,1705420261305,-3000.0,0.00027397,2]
[311805539,1705420261316,-3000.0,0.00027397,2]
[311805540,1705420261326,-3000.0,0.00027397,2]
[311805541,1705420261336,-3000.0,0.00027397,2]
[311805542,1705420261346,-3000.0,0.00027397,2]
[311805543,1705420261355,-3000.0,0.00027397,2]
[311805544,1705420261366,-3000.0,0.00027397,2]
[311805545,1705420261376,-155.0,0.00027397,2]
[311805546,1705420261385,-150.0,0.00027397,2]
[311805547,1705420261394,-151.0,0.00027397,7]
[311805548,1705420261404,-151.0,0.00027397,7]
[311805549,1705420261413,-348.486999,0.00027397,7]
[311805550,1705420261422,-348.486999,0.00027397,7]
[311805551,1705420261432,-151.0,0.00027397,7]
[311805552,1705420261443,-151.0,0.00027397,7]
[311805553,1705420261452,-815.783156,0.00027397,7]
[311805554,1705420261462,-815.783156,0.00027397,7]
[311805555,1705420261472,-33608.39,0.00027397,2]
[311805556,1705420261482,-530.0,0.00027397,2]
[311805557,1705420261492,-10876.13,0.00027397,2]
[311805558,1705420261502,-28733.76,0.00027397,2]
[311805559,1705420261511,-250.0,0.000274,2]
[311805560,1705420261521,-8000.0,0.000274,2]
[311805561,1705420261531,-151.0,0.000274,7]
[311805562,1705420261542,-1697.49,0.000274,2]
[311805563,1705420261552,-1697.49,0.000274,2]
[311805564,1705420261562,-1697.49,0.000274,2]
[311805565,1705420261575,-1697.49,0.000274,2]
[311805566,1705420261584,-1697.49,0.000274,2]
[311805567,1705420261595,-1697.49,0.000274,2]
[311805568,1705420261605,-1697.49,0.000274,2]
[311805569,1705420261615,-1697.49,0.000274,2]
[311805570,1705420261624,-1697.49,0.000274,2]
[311805571,1705420261634,-1697.49,0.000274,2]
[311805572,1705420261645,-2189.72,0.00027418,2]
[311805573,1705420261655,-1881.76,0.00027435,2]
[311805574,1705420261665,-5230.49,0.00027442,2]
[311805575,1705420261677,-5230.49,0.00027442,2]
[311805576,1705420261686,-5230.49,0.00027442,2]
[311805577,1705420261696,-5230.49,0.00027442,2]
[311805578,1705420261706,-5230.49,0.00027442,2]
[311805579,1705420261715,-5230.49,0.00027442,2]
[311805580,1705420261725,-5230.49,0.00027442,2]
[311805581,1705420261735,-5230.49,0.00027442,2]
[311805582,1705420261746,-5230.49,0.00027442,2]
[311805583,1705420261755,-5230.49,0.00027442,2]
[311805584,1705420261765,-151.0,0.00027454,7]
[311805585,1705420261774,-151.0,0.00027454,7]
[311805586,1705420261784,-151.0,0.00027454,2]
[311805587,1705420261793,-151.0,0.00027454,2]
[311805588,1705420261803,-180.677345,0.00027454,7]
[311805589,1705420261812,-237.330556,0.00027454,7]
[311805590,1705420261825,-237.330556,0.00027454,7]
[311805591,1705420261834,-227.182163,0.00027454,7]
[311805592,1705420261845,-227.182163,0.00027454,7]
[311805593,1705420261854,-151.0,0.00027454,7]
[311805594,1705420261864,-200000.0,0.00027454,7]
[311805595,1705420261873,-1663.63,0.00027456,2]
[311805596,1705420261882,-12901.29127032,0.000275,2]
[311805597,1705420261891,-185.55968943,0.000275,2]
[311805598,1705420261901,-593.0,0.000275,16]
[311805599,1705420261911,-150.03948849,0.000275,5]
[311805600,1705420261921,-167.0,0.00027505,2]
[311805601,1705420261930,-152.0,0.00027531,4]
[311805602,1705420261939,-10876.13,0.00027556,2]
[311805603,1705420261949,-500.0,0.00027644,2]
[311805604,1705420261959,-10876.13,0.00027714,2]
[311805605,1705420261969,-16529.0,0.00027719,2]
[311805606,1705420261979,-1663.63,0.0002773,2]
[311805607,1705420261988,-10876.13,0.00027872,2]
[311805608,1705420261998,-500.0,0.00027894,2]
[311805609,1705420262008,-150.0,0.00027945,2]
[311805610,1705420262017,-3895.0310756,0.00027962,2]
[311805611,1705420262027,-5932.3849615,0.00027962,2]
[311805612,1705420262037,-57721.9167034,0.00027962,2]
[311805613,1705420262046,-152.0,0.00027975,5]
[311805614,1705420262056,-76105.7873166,0.00027981,2]
[311805615,1705420262065,-5691.695005,0.00027981,2]
[311805616,1705420262077,-202.92894676,0.00028,2]
[311805617,1705420262087,-688.02629954,0.00028,2]
[311805618,1705420262097,-364.18770067,0.00028,2]
[311805619,1705420262106,-300.0,0.00028,29]
[311805620,1705420262116,-1017.24107,0.00028,5]
[311805621,1705420262125,-20000.0,0.00028,2]
[311805622,1705420262135,-2000.0,0.00028,2]
[311805623,1705420262144,-593.0,0.00028,16]
[311805624,1705420262153,-150.0,0.00028,2]
[311805625,1705420262162,-2598.5141664,0.00028,2]
[311805626,1705420262172,-407.60207554,0.00028,2]
[311805627,1705420262181,-407.60207554,0.00028,2]
[311805628,1705420262191,-407.60207554,0.00028,2]
[311805629,1705420262200,-3000.0,0.00028,2]
[311805630,1705420262210,-300.0,0.00028,2]
[311805631,1705420262219,-200.0,0.00028,2]
[311805632,1705420262229,-629.7262561,0.00028,2]
[311805633,1705420262238,-629.7262561,0.00028,2]
[311805634,1705420262248,-629.7262561,0.00028,2]
[311805635,1705420262258,-629.7262561,0.00028,2]
[311805636,1705420262269,-629.7262561,0.00028,2]
[311805637,1705420262278,-629.7262561,0.00028,2]
[311805638,1705420262287,-629.7262561,0.00028,2]
[311805639,1705420262296,-629.7262561,0.00028,2]
[311805640,1705420262306,-629.7262561,0.00028,2]
[311805641,1705420262315,-629.7262561,0.00028,2]
[311805642,1705420262326,-150.0,0.00028,2]
[311805643,1705420262335,-629.7262561,0.00028,2]
[311805644,1705420262344,-629.7262561,0.00028,2]
[311805645,1705420262353,-629.7262561,0.00028,2]
[311805646,1705420262366,-629.7262561,0.00028,2]
[311805647,1705420262377,-629.7262561,0.00028,2]
[311805648,1705420262387,-629.7262561,0.00028,2]
[311805649,1705420262397,-629.7262561,0.00028,2]
[311805650,1705420262407,-629.7262561,0.00028,2]
[311805651,1705420262417,-629.7262561,0.00028,2]
[311805652,1705420262427,-629.7262561,0.00028,2]
[311805653,1705420262438,-629.7262561,0.00028,2]
[311805654,1705420262447,-629.7262561,0.00028,2]
[311805655,1705420262457,-629.7262561,0.00028,2]
[311805656,1705420262466,-629.7262561,0.00028,2]
[311805657,1705420262476,-629.7262561,0.00028,2]
[311805658,1705420262488,-629.7262561,0.00028,2]
[311805659,1705420262499,-629.7262561,0.00028,2]
[311805660,1705420262509,-629.7262561,0.00028,2]
[311805661,1705420262519,-629.7262561,0.00028,2]